Workbook

Sheet Лист1
A1: Школа | C1: МБОУ СОШ с.Староянтузово | F1: Утвердил: | G1: должность | H1: Директор
A2: Типовое примерное меню приготавливаемых блюд | G2: фамилия | H2: Камалиева Н.Г.
A3: Возрастная категория | E3: 7-11 лет | G3: дата | H3: 31 | I3: 8 | J3: 2025
H4: день | I4: месяц | J4: год
A5: Неделя | B5: День недели | C5: Прием пищи | D5: Раздел меню | E5: Блюда | F5: Вес блюда, г | G5: Белки | H5: Жиры | I5: Углеводы | J5: Калорийность | K5: № рецептуры | L5: Цена
A6: 1 | B6: 1 | C6: Завтрак | D6: гор.блюдо | E6: Каша гречневая рассыпчатая, котлеты из говядины с томатным соусом | F6: 245 | G6: 18.8 | H6: 18.4 | I6: 55.4 | J6: 463.1 | K6: 219, 189 | L6: 56.84
D8: гор.напиток | E8: Чай с сахаром | F8: 200 | G8: 0.1 | H8: 0 | I8: 9.1 | J8: 35 | K8: 283 | L8: 1.93
D9: хлеб | E9: Хлеб пшеничный 1 сорта для детского питания | F9: 55 | G9: 4.7 | H9: 0.7 | I9: 28.4 | J9: 140 | K9: 7 | L9: 5.5
D10: фрукты
D13: итого | F13: =SUM(F6:F12) -> 500 | G13: =SUM(G6:G12) -> 23.6 | H13: =SUM(H6:H12) -> 19.1 | I13: =SUM(I6:I12) -> 92.9 | J13: =SUM(J6:J12) -> 638.1 | L13: =SUM(L6:L12) -> 64.27
A14: =A6 -> 1 | B14: =B6 -> 1 | C14: Обед | D14: закуска
D15: 1 блюдо
D16: 2 блюдо
D17: гарнир
D18: напиток
D19: хлеб бел.
D20: хлеб черн.
D23: итого | F23: =SUM(F14:F22) -> 0 | G23: =SUM(G14:G22) -> 0 | H23: =SUM(H14:H22) -> 0 | I23: =SUM(I14:I22) -> 0 | J23: =SUM(J14:J22) -> 0 | L23: =SUM(L14:L22) -> 0
A24: =A6 -> 1 | B24: =B6 -> 1 | C24: Итого за день: | F24: =F13+F23 -> 500 | G24: =G13+G23 -> 23.6 | H24: =H13+H23 -> 19.1 | I24: =I13+I23 -> 92.9 | J24: =J13+J23 -> 638.1 | L24: =L13+L23 -> 64.27
A25: 1 | B25: 2 | C25: Завтрак | D25: гор.блюдо | E25: Каша овсяная молочная | F25: 185 | G25: 6.9 | H25: 9.1 | I25: 28.8 | J25: 231 | K25: 206 | L25: 15.55
D27: гор.напиток | E27: Чай с лимоном и с сахаром | F27: 200 | G27: 0.1 | H27: 0 | I27: 15.3 | J27: 61.6 | K27: 294 | L27: 4.14
D28: хлеб | E28: Бутерброд с маслом | F28: 70 | G28: 5.9 | H28: 8.2 | I28: 31.7 | J28: 191.3 | K28: 1, 2 | L28: 21.25
D29: фрукты
E30: Печенье для детского питания | F30: 20 | G30: 3 | H30: 3.2 | I30: 13.4 | J30: 88 | K30: 5 | L30: 5.06
E31: Сок для детского питания | F31: 200 | G31: 0 | H31: 0 | I31: 24 | J31: 96 | K31: 36 | L31: 35
D32: итого | F32: =SUM(F25:F31) -> 675 | G32: =SUM(G25:G31) -> 15.9 | H32: =SUM(H25:H31) -> 20.5 | I32: =SUM(I25:I31) -> 113.2 | J32: =SUM(J25:J31) -> 667.9 | L32: =SUM(L25:L31) -> 81
A33: =A25 -> 1 | B33: =B25 -> 2 | C33: Обед | D33: закуска
D34: 1 блюдо
D35: 2 блюдо
D36: гарнир
D37: напиток
D38: хлеб бел.
D39: хлеб черн.
D42: итого | F42: =SUM(F33:F41) -> 0 | G42: =SUM(G33:G41) -> 0 | H42: =SUM(H33:H41) -> 0 | I42: =SUM(I33:I41) -> 0 | J42: =SUM(J33:J41) -> 0 | L42: =SUM(L33:L41) -> 0
A43: =A25 -> 1 | B43: =B25 -> 2 | C43: Итого за день: | F43: =F32+F42 -> 675 | G43: =G32+G42 -> 15.9 | H43: =H32+H42 -> 20.5 | I43: =I32+I42 -> 113.2 | J43: =J32+J42 -> 667.9 | L43: =L32+L42 -> 81
A44: 1 | B44: 3 | C44: Завтрак | D44: гор.блюдо | E44: Картофельное пюре, палочки школьные | F44: 290 | G44: 13.3 | H44: 14.1 | I44: 31.2 | J44: 381.2 | K44: 241, 34 | L44: 63.44
E45: Маринад овощной без томата | F45: 100 | G45: 1.2 | H45: 8.9 | I45: 9.8 | J45: 123 | K45: 47 | L45: 5.49
D46: гор.напиток | E46: Чай с сахаром | F46: 200 | G46: 0.1 | H46: 0 | I46: 9.1 | J46: 35 | K46: 283 | L46: 1.93
D47: хлеб | E47: Хлеб пшеничный 1 сорта для детского питания | F47: 55 | G47: 4.7 | H47: 0.7 | I47: 28.4 | J47: 139.7 | K47: 7 | L47: 5.5
D48: фрукты
D51: итого | F51: =SUM(F44:F50) -> 645 | G51: =SUM(G44:G50) -> 19.3 | H51: =SUM(H44:H50) -> 23.7 | I51: =SUM(I44:I50) -> 78.5 | J51: =SUM(J44:J50) -> 678.9 | L51: =SUM(L44:L50) -> 76.36
A52: =A44 -> 1 | B52: =B44 -> 3 | C52: Обед | D52: закуска
D53: 1 блюдо
D54: 2 блюдо
D55: гарнир
D56: напиток
D57: хлеб бел.
D58: хлеб черн.
D61: итого | F61: =SUM(F52:F60) -> 0 | G61: =SUM(G52:G60) -> 0 | H61: =SUM(H52:H60) -> 0 | I61: =SUM(I52:I60) -> 0 | J61: =SUM(J52:J60) -> 0 | L61: =SUM(L52:L60) -> 0
A62: =A44 -> 1 | B62: =B44 -> 3 | C62: Итого за день: | F62: =F51+F61 -> 645 | G62: =G51+G61 -> 19.3 | H62: =H51+H61 -> 23.7 | I62: =I51+I61 -> 78.5 | J62: =J51+J61 -> 678.9 | L62: =L51+L61 -> 76.36
A63: 1 | B63: 4 | C63: Завтрак | D63: гор.блюдо | E63: Каша рисовая молочная жидкая | F63: 185 | G63: 4.6 | H63: 8.4 | I63: 29.4 | J63: 189.2 | K63: 114 | L63: 17.53
D65: гор.напиток | E65: Чай с лимоном и с сахаром | F65: 200 | G65: 0.1 | H65: 0 | I65: 15.31 | J65: 61.6 | K65: 294 | L65: 4.14
D66: хлеб | E66: Хлеб пшеничный 1 сорта для детского питания | F66: 55 | G66: 4.7 | H66: 0.7 | I66: 28.4 | J66: 139.7 | K66: 7 | L66: 5.5
D67: фрукты | E67: Свежие фрукты (банан) | F67: 160 | G67: 2.7 | H67: 0.9 | I67: 31.8 | J67: 111 | K67: 35 | L67: 25.6
E68: Сыр (порциями) | F68: 20 | G68: 4.6 | H68: 5.9 | I68: 0.6 | J68: 72.8 | K68: 91 | L68: 15.97
D70: итого | F70: =SUM(F63:F69) -> 620 | G70: =SUM(G63:G69) -> 16.7 | H70: =SUM(H63:H69) -> 15.9 | I70: =SUM(I63:I69) -> 105.51 | J70: =SUM(J63:J69) -> 574.3 | L70: =SUM(L63:L69) -> 68.74
A71: =A63 -> 1 | B71: =B63 -> 4 | C71: Обед | D71: закуска
D72: 1 блюдо
D73: 2 блюдо
D74: гарнир
D75: напиток
D76: хлеб бел.
D77: хлеб черн.
D80: итого | F80: =SUM(F71:F79) -> 0 | G80: =SUM(G71:G79) -> 0 | H80: =SUM(H71:H79) -> 0 | I80: =SUM(I71:I79) -> 0 | J80: =SUM(J71:J79) -> 0 | L80: =SUM(L71:L79) -> 0
A81: =A63 -> 1 | B81: =B63 -> 4 | C81: Итого за день: | F81: =F70+F80 -> 620 | G81: =G70+G80 -> 16.7 | H81: =H70+H80 -> 15.9 | I81: =I70+I80 -> 105.51 | J81: =J70+J80 -> 574.3 | L81: =L70+L80 -> 68.74
A82: 1 | B82: 5 | C82: Завтрак | D82: гор.блюдо | E82: Макаронные изделия отварные, тефтели куриные с томатным соусом | F82: 275 | G82: 17.6 | H82: 20.7 | I82: 57.2 | J82: 448.5 | K82: 227, 220 | L82: 56.12
D84: гор.напиток | E84: Чай витаминизированный | F84: 200 | G84: 0.1 | H84: 0 | I84: 8.7 | J84: 34 | K84: 286 | L84: 6.32
D85: хлеб | E85: Хлеб пшеничный 1 сорта для детского питания | F85: 27.5 | G85: 2.4 | H85: 0.3 | I85: 14.2 | J85: 69.9 | K85: 7 | L85: 2.7
D86: фрукты
E87: Сыр (порциями) | F87: 20 | G87: 4.6 | H87: 5.9 | I87: 0.6 | J87: 72.8 | K87: 91 | L87: 15.97
D89: итого | F89: =SUM(F82:F88) -> 522.5 | G89: =SUM(G82:G88) -> 24.7 | H89: =SUM(H82:H88) -> 26.9 | I89: =SUM(I82:I88) -> 80.7 | J89: =SUM(J82:J88) -> 625.2 | L89: =SUM(L82:L88) -> 81.11
A90: =A82 -> 1 | B90: =B82 -> 5 | C90: Обед | D90: закуска
D91: 1 блюдо
D92: 2 блюдо
D93: гарнир
D94: напиток
D95: хлеб бел.
D96: хлеб черн.
D99: итого | F99: =SUM(F90:F98) -> 0 | G99: =SUM(G90:G98) -> 0 | H99: =SUM(H90:H98) -> 0 | I99: =SUM(I90:I98) -> 0 | J99: =SUM(J90:J98) -> 0 | L99: =SUM(L90:L98) -> 0
A100: =A82 -> 1 | B100: =B82 -> 5 | C100: Итого за день: | F100: =F89+F99 -> 522.5 | G100: =G89+G99 -> 24.7 | H100: =H89+H99 -> 26.9 | I100: =I89+I99 -> 80.7 | J100: =J89+J99 -> 625.2 | L100: =L89+L99 -> 81.11
A101: 2 | B101: 1 | C101: Завтрак | D101: гор.блюдо | E101: Макароны с сыром | F101: 180 | G101: 8.5 | H101: 13.6 | I101: 28.1 | J101: 275.6 | K101: 213 | L101: 23.96
D103: гор.напиток | E103: Какао с молоком | F103: 200 | G103: 3.6 | H103: 3.3 | I103: 13.6 | J103: 100 | K103: 306 | L103: 11.52
D104: хлеб | E104: Хлеб пшеничный 1 сорта для детского питания | F104: 55 | G104: 4.7 | H104: 0.7 | I104: 28.4 | J104: 139.7 | K104: 7 | L104: 5.5
D105: фрукты
E106: Сок для детского питания | F106: 200 | G106: 0 | H106: 0 | I106: 24 | J106: 96 | K106: 36 | L106: 35
D108: итого | F108: =SUM(F101:F107) -> 635 | G108: =SUM(G101:G107) -> 16.8 | H108: =SUM(H101:H107) -> 17.6 | I108: =SUM(I101:I107) -> 94.1 | J108: =SUM(J101:J107) -> 611.3 | L108: =SUM(L101:L107) -> 75.98
A109: =A101 -> 2 | B109: =B101 -> 1 | C109: Обед | D109: закуска
D110: 1 блюдо
D111: 2 блюдо
D112: гарнир
D113: напиток
D114: хлеб бел.
D115: хлеб черн.
D118: итого | F118: =SUM(F109:F117) -> 0 | G118: =SUM(G109:G117) -> 0 | H118: =SUM(H109:H117) -> 0 | I118: =SUM(I109:I117) -> 0 | J118: =SUM(J109:J117) -> 0 | L118: =SUM(L109:L117) -> 0
A119: =A101 -> 2 | B119: =B101 -> 1 | C119: Итого за день: | F119: =F108+F118 -> 635 | G119: =G108+G118 -> 16.8 | H119: =H108+H118 -> 17.6 | I119: =I108+I118 -> 94.1 | J119: =J108+J118 -> 611.3 | L119: =L108+L118 -> 75.98
A120: 2 | B120: 2 | C120: Завтрак | D120: гор.блюдо | E120: Каша гречневая рассыпчатая, гуляш из говядины | F120: 245 | G120: 22.9 | H120: 20.2 | I120: 49.3 | J120: 463.9 | K120: 219, 96 | L120: 63.87
D122: гор.напиток | E122: Чай с сахаром | F122: 200 | G122: 0.1 | H122: 0 | I122: 9.1 | J122: 35 | K122: 283 | L122: 1.93
D123: хлеб | E123: Хлеб пшеничный 1 сорта для детского питания | F123: 27.5 | G123: 2.4 | H123: 0.3 | I123: 14.2 | J123: 69.9 | K123: 7 | L123: 2.7
D124: фрукты
E125: Салат из свеклы отварной | F125: 60 | G125: 0.9 | H125: 3.1 | I125: 13.7 | J125: 55.2 | K125: 23 | L125: 3.22
D127: итого | F127: =SUM(F120:F126) -> 532.5 | G127: =SUM(G120:G126) -> 26.3 | H127: =SUM(H120:H126) -> 23.6 | I127: =SUM(I120:I126) -> 86.3 | J127: =SUM(J120:J126) -> 624 | L127: =SUM(L120:L126) -> 71.72
A128: =A120 -> 2 | B128: =B120 -> 2 | C128: Обед | D128: закуска
D129: 1 блюдо
D130: 2 блюдо
D131: гарнир
D132: напиток
D133: хлеб бел.
D134: хлеб черн.
D137: итого | F137: =SUM(F128:F136) -> 0 | G137: =SUM(G128:G136) -> 0 | H137: =SUM(H128:H136) -> 0 | I137: =SUM(I128:I136) -> 0 | J137: =SUM(J128:J136) -> 0 | L137: =SUM(L128:L136) -> 0
A138: =A120 -> 2 | B138: =B120 -> 2 | C138: Итого за день: | F138: =F127+F137 -> 532.5 | G138: =G127+G137 -> 26.3 | H138: =H127+H137 -> 23.6 | I138: =I127+I137 -> 86.3 | J138: =J127+J137 -> 624 | L138: =L127+L137 -> 71.72
A139: 2 | B139: 3 | C139: Завтрак | D139: гор.блюдо | E139: Каша пшенная молочная жидкая | F139: 185 | G139: 5.5 | H139: 6.7 | I139: 25.3 | J139: 184 | K139: 123 | L139: 14.44
D141: гор.напиток | E141: Чай с сахаром | F141: 200 | G141: 0.1 | H141: 0 | I141: 9.1 | J141: 35 | K141: 283 | L141: 1.93
D142: хлеб | E142: Бутерброд с маслом | F142: 37.5 | G142: 3.1 | H142: 6.9 | I142: 16.8 | J142: 124.5 | K142: 1, 2 | L142: 13.2
D143: фрукты | E143: Свежие фрукты (Апельсин) | F143: 160 | G143: 2.3 | H143: 2.1 | I143: 11.3 | J143: 79 | K143: 37 | L143: 20.48
E144: Сыр (порциями) | F144: 20 | G144: 4.6 | H144: 5.9 | I144: 0.6 | J144: 72.8 | K144: 91 | L144: 15.97
D146: итого | F146: =SUM(F139:F145) -> 602.5 | G146: =SUM(G139:G145) -> 15.6 | H146: =SUM(H139:H145) -> 21.6 | I146: =SUM(I139:I145) -> 63.1 | J146: =SUM(J139:J145) -> 495.3 | L146: =SUM(L139:L145) -> 66.02
A147: =A139 -> 2 | B147: =B139 -> 3 | C147: Обед | D147: закуска
D148: 1 блюдо
D149: 2 блюдо
D150: гарнир
D151: напиток
D152: хлеб бел.
D153: хлеб черн.
D156: итого | F156: =SUM(F147:F155) -> 0 | G156: =SUM(G147:G155) -> 0 | H156: =SUM(H147:H155) -> 0 | I156: =SUM(I147:I155) -> 0 | J156: =SUM(J147:J155) -> 0 | L156: =SUM(L147:L155) -> 0
A157: =A139 -> 2 | B157: =B139 -> 3 | C157: Итого за день: | F157: =F146+F156 -> 602.5 | G157: =G146+G156 -> 15.6 | H157: =H146+H156 -> 21.6 | I157: =I146+I156 -> 63.1 | J157: =J146+J156 -> 495.3 | L157: =L146+L156 -> 66.02
A158: 2 | B158: 4 | C158: Завтрак | D158: гор.блюдо | E158: Картофельное пюре, котлеты куриные с томатным соусом | F158: 270 | G158: 14 | H158: 17 | I158: 32.6 | J158: 373.7 | K158: 241, 40 | L158: 59.8
D160: гор.напиток | E160: Чай с лимоном и с сахаром | F160: 200 | G160: 0.1 | H160: 0 | I160: 15.3 | J160: 61.6 | K160: 294 | L160: 4.14
D161: хлеб | E161: Хлеб пшеничный 1 сорта для детского питания | F161: 27.5 | G161: 2.4 | H161: 0.3 | I161: 14.2 | J161: 69.9 | K161: 7 | L161: 2.7
D162: фрукты
E163: Шоколад "Аленка" для детского питания | F163: 15 | G163: 1.1 | H163: 5.1 | I163: 8 | J163: 83 | K163: 3 | L163: 23
D165: итого | F165: =SUM(F158:F164) -> 512.5 | G165: =SUM(G158:G164) -> 17.6 | H165: =SUM(H158:H164) -> 22.4 | I165: =SUM(I158:I164) -> 70.1 | J165: =SUM(J158:J164) -> 588.2 | L165: =SUM(L158:L164) -> 89.64
A166: =A158 -> 2 | B166: =B158 -> 4 | C166: Обед | D166: закуска
D167: 1 блюдо
D168: 2 блюдо
D169: гарнир
D170: напиток
D171: хлеб бел.
D172: хлеб черн.
D175: итого | F175: =SUM(F166:F174) -> 0 | G175: =SUM(G166:G174) -> 0 | H175: =SUM(H166:H174) -> 0 | I175: =SUM(I166:I174) -> 0 | J175: =SUM(J166:J174) -> 0 | L175: =SUM(L166:L174) -> 0
A176: =A158 -> 2 | B176: =B158 -> 4 | C176: Итого за день: | F176: =F165+F175 -> 512.5 | G176: =G165+G175 -> 17.6 | H176: =H165+H175 -> 22.4 | I176: =I165+I175 -> 70.1 | J176: =J165+J175 -> 588.2 | L176: =L165+L175 -> 89.64
A177: 2 | B177: 5 | C177: Завтрак | D177: гор.блюдо | E177: Каша "Дружба" | F177: 185 | G177: 5.2 | H177: 7.5 | I177: 28.9 | J177: 119.3 | K177: 102 | L177: 15.29
D179: гор.напиток | E179: Чай витаминизированный | F179: 200 | G179: 0.1 | H179: 0 | I179: 8.7 | J179: 34 | K179: 286 | L179: 6.32
D180: хлеб | E180: Хлеб пшеничный 1 сорта для детского питания | F180: 55 | G180: 4.7 | H180: 0.7 | I180: 28.4 | J180: 139.7 | K180: 7 | L180: 5.5
D181: фрукты
E182: Плюшка "Московская" | F182: 100 | G182: 7.6 | H182: 9.6 | I182: 55.9 | J182: 236 | K182: 9 | L182: 35
D184: итого | F184: =SUM(F177:F183) -> 540 | G184: =SUM(G177:G183) -> 17.6 | H184: =SUM(H177:H183) -> 17.8 | I184: =SUM(I177:I183) -> 121.9 | J184: =SUM(J177:J183) -> 529 | L184: =SUM(L177:L183) -> 62.11
A185: =A177 -> 2 | B185: =B177 -> 5 | C185: Обед | D185: закуска
D186: 1 блюдо
D187: 2 блюдо
D188: гарнир
D189: напиток
D190: хлеб бел.
D191: хлеб черн.
D194: итого | F194: =SUM(F185:F193) -> 0 | G194: =SUM(G185:G193) -> 0 | H194: =SUM(H185:H193) -> 0 | I194: =SUM(I185:I193) -> 0 | J194: =SUM(J185:J193) -> 0 | L194: =SUM(L185:L193) -> 0
A195: =A177 -> 2 | B195: =B177 -> 5 | C195: Итого за день: | F195: =F184+F194 -> 540 | G195: =G184+G194 -> 17.6 | H195: =H184+H194 -> 17.8 | I195: =I184+I194 -> 121.9 | J195: =J184+J194 -> 529 | L195: =L184+L194 -> 62.11
C196: Среднее значение за период: | F196: =(F24+F43+F62+F81+F100+F119+F138+F157+F176+F195)/(IF(F24=0,0,1)+IF(F43=0,0,1)+IF(F62=0,0,1)+IF(F81=0,0,1)+IF(F100=0,0,1)+IF(F119=0,0,1)+IF(F138=0,0,1)+IF(F157=0,0,1)+IF(F176=0,0,1)+IF(F195=0,0,1)) -> 578.5 | G196: =(G24+G43+G62+G81+G100+G119+G138+G157+G176+G195)/(IF(G24=0,0,1)+IF(G43=0,0,1)+IF(G62=0,0,1)+IF(G81=0,0,1)+IF(G100=0,0,1)+IF(G119=0,0,1)+IF(G138=0,0,1)+IF(G157=0,0,1)+IF(G176=0,0,1)+IF(G195=0,0,1)) -> 19.41 | H196: =(H24+H43+H62+H81+H100+H119+H138+H157+H176+H195)/(IF(H24=0,0,1)+IF(H43=0,0,1)+IF(H62=0,0,1)+IF(H81=0,0,1)+IF(H100=0,0,1)+IF(H119=0,0,1)+IF(H138=0,0,1)+IF(H157=0,0,1)+IF(H176=0,0,1)+IF(H195=0,0,1)) -> 20.91 | I196: =(I24+I43+I62+I81+I100+I119+I138+I157+I176+I195)/(IF(I24=0,0,1)+IF(I43=0,0,1)+IF(I62=0,0,1)+IF(I81=0,0,1)+IF(I100=0,0,1)+IF(I119=0,0,1)+IF(I138=0,0,1)+IF(I157=0,0,1)+IF(I176=0,0,1)+IF(I195=0,0,1)) -> 90.631 | J196: =(J24+J43+J62+J81+J100+J119+J138+J157+J176+J195)/(IF(J24=0,0,1)+IF(J43=0,0,1)+IF(J62=0,0,1)+IF(J81=0,0,1)+IF(J100=0,0,1)+IF(J119=0,0,1)+IF(J138=0,0,1)+IF(J157=0,0,1)+IF(J176=0,0,1)+IF(J195=0,0,1)) -> 603.22 | L196: =(L24+L43+L62+L81+L100+L119+L138+L157+L176+L195)/(IF(L24=0,0,1)+IF(L43=0,0,1)+IF(L62=0,0,1)+IF(L81=0,0,1)+IF(L100=0,0,1)+IF(L119=0,0,1)+IF(L138=0,0,1)+IF(L157=0,0,1)+IF(L176=0,0,1)+IF(L195=0,0,1)) -> 73.695
